bitfinex/quotes_ETHUSD_20240721
["timestamp","ask_amount","ask_price","bid_price","bid_amount"]
[1721583677136,0.89114294,3513.3,3512.8,2.4582]
[1721583677769,0.00389995,3513.2,3512.8,2.4582]
[1721583677921,0.89504289,3513.2,3512.8,2.4582]
[1721583678122,0.89114294,3513.3,3512.8,2.4582]
[1721583678325,0.00552487,3513.1,3512.8,2.4582]
[1721583678573,0.89504289,3513.2,3512.8,2.4582]
[1721583678730,0.0071499,3513.0,3512.8,2.4582]
[1721583678929,0.89114294,3513.2,3512.8,2.4582]
[1721583679120,0.00877501,3512.9,3512.8,2.4582]
[1721583679328,0.89114294,3513.2,3512.8,2.4582]
[1721583679554,0.00877501,3512.9,3512.8,2.4582]
[1721583680069,0.89114294,3513.2,3512.8,2.4582]
[1721583680240,0.00552487,3513.1,3512.8,2.4582]
[1721583680560,0.00714989,3513.1,3512.8,2.4582]
[1721583688482,0.0071499,3513.0,3512.8,2.4582]
[1721583688850,0.89114294,3513.2,3512.8,2.4582]
[1721583689049,0.00552487,3513.1,3512.8,2.4582]
[1721583689275,0.00714989,3513.1,3512.8,5.30492]
[1721583689645,0.89114294,3513.1,3512.8,5.30492]
[1721583689850,0.89114294,3513.2,3513.1,2.84648]
[1721583690049,0.00389995,3513.2,3513.1,5.86728]
[1721583690351,1.1881058,3513.4,3513.1,5.86728]
[1721583690352,0.89114294,3513.4,3513.3,5.31712]
[1721583690557,0.89114294,3513.5,3513.4,2.84624]
[1721583690862,0.89114294,3513.5,3513.3,2.4708]
[1721583691084,0.89114294,3513.4,3513.3,2.4708]
[1721583691396,0.89114294,3513.5,3513.3,5.31712]
[1721583692092,0.89114294,3513.4,3513.3,2.4708]
[1721583693281,0.89114294,3513.5,3513.3,2.4708]
[1721583694078,0.89114294,3513.5,3513.3,5.31712]
[1721583695589,0.89114294,3513.6,3513.5,2.84616]
[1721583695792,1.1881058,3513.7,3513.5,2.84616]
[1721583696999,1.1881058,3513.7,3513.6,2.4708]
[1721583697381,1.485742,3513.8,3513.6,2.4708]
[1721583698292,1.1881058,3513.7,3513.6,2.4708]
[1721583699390,1.485742,3513.8,3513.6,2.4708]
[1721583699554,1.1881058,3513.7,3513.6,2.4708]
[1721583699993,1.1881058,3513.7,3513.3,2.84632]
[1721583700192,0.88985897,3513.5,3513.3,2.84632]
[1721583700559,0.88985897,3513.6,3513.3,2.84632]
[1721583700905,1.1881058,3513.7,3513.2,5.17419]
[1721583700906,0.88985897,3513.5,3513.2,5.17419]
[1721583701192,0.8907299,3513.5,3513.2,5.17419]
[1721583701394,0.8923546,3513.5,3513.2,5.17419]
[1721583701621,0.8923546,3513.5,3513.3,2.84632]
[1721583701622,0.88985897,3513.5,3513.3,2.84632]
[1721583701788,0.00164947,3513.4,3513.3,2.84632]
[1721583702368,0.00249563,3513.4,3513.3,2.84632]
[1721583702698,0.00164947,3513.4,3513.3,2.84632]
[1721583703399,0.00249563,3513.4,3513.3,2.84632]
[1721583703700,0.00164947,3513.4,3513.3,2.84632]
[1721583704276,0.00249563,3513.4,3513.3,2.84632]
[1721583704475,0.88985897,3513.5,3513.3,2.84632]
[1721583704677,0.00164947,3513.4,3513.3,2.84632]
[1721583705388,0.88985897,3513.5,3513.3,2.84632]
[1721583705777,0.00164947,3513.4,3513.2,2.3278]
[1721583706163,0.00327424,3513.4,3513.2,2.3278]
[1721583706366,0.00412042,3513.4,3513.2,5.17419]
[1721583706607,0.00227511,3513.4,3513.2,5.17419]
[1721583706798,0.00327423,3513.4,3513.2,5.17419]
[1721583707263,0.00412041,3513.4,3513.2,5.17419]
[1721583707507,0.00227511,3513.4,3513.2,5.17419]
[1721583708391,0.00412042,3513.4,3513.2,5.17419]
[1721583708594,0.00227511,3513.4,3513.2,5.17419]
[1721583709199,0.00227511,3513.4,3513.2,2.3278]
[1721583709424,0.00412042,3513.4,3513.3,2.84632]
[1721583709573,0.00227511,3513.4,3513.3,2.84632]
[1721583709769,0.00164947,3513.4,3513.3,2.84632]
[1721583710090,0.88985897,3513.7,3513.4,2.84623]
[1721583717273,0.88985897,3513.7,3513.3,2.84632]
[1721583717675,0.88985897,3513.7,3513.6,6.04998]
[1721583717912,1.18749517,3513.8,3513.7,2.846]
[1721583718215,0.88985897,3514.0,3513.8,2.84592]
[1721583719092,0.88985897,3514.0,3513.9,0.841]
[1721583719325,0.88985897,3514.0,3513.8,2.84592]
[1721583719473,0.88985897,3514.0,3513.9,5.20874]
[1721583719816,0.88985897,3514.1,3513.9,5.20874]
[1721583721119,0.88985897,3514.1,3513.9,6.04974]
[1721583721315,0.88985897,3514.1,3513.9,5.20874]
[1721583721849,0.88985897,3514.1,3513.7,2.84599]
[1721583722139,0.88985897,3514.1,3513.7,5.20889]
[1721583722518,0.88985897,3514.1,3513.5,2.84614]
[1721583722519,0.88985897,3514.0,3513.5,5.20904]
[1721583722843,0.88985897,3514.0,3513.6,0.55]
[1721583723153,0.88985897,3514.0,3513.3,3.68731]
[1721583723321,0.88985897,3513.9,3513.3,2.84631]
[1721583723652,0.88985897,3513.9,3513.3,3.68731]
[1721583724179,0.88985897,3513.9,3513.5,0.841]
[1721583724326,0.88985897,3513.9,3513.6,5.20892]
[1721583724709,0.88985897,3514.0,3513.6,5.20892]
[1721583726043,0.88985897,3514.0,3513.6,6.04992]
[1721583726209,0.88985897,3514.0,3513.6,5.20892]
[1721583727059,0.88985897,3514.0,3513.7,2.846]
[1721583727225,0.88985897,3514.1,3513.7,2.846]
[1721583727774,0.88985897,3514.0,3513.7,2.846]
[1721583728180,0.88985897,3514.0,3513.7,3.687]
[1721583728344,0.88985897,3514.0,3513.7,2.846]
[1721583728945,0.88985897,3514.1,3513.7,2.846]
[1721583729195,0.88985897,3514.1,3514.0,0.841]
[1721583729354,0.29761444,3514.2,3514.0,6.04965]
[1721583729668,3.0,3514.9,3514.3,2.84551]
[1721583729669,0.88985897,3514.5,3514.3,2.84551]
[1721583729887,0.88985897,3514.6,3514.3,2.84551]
[1721583730030,0.88985897,3514.6,3514.1,3.39567]
[1721583730031,0.88985897,3514.6,3514.4,0.841]
[1721583730228,0.88985897,3514.5,3514.1,0.55]
[1721583730432,0.88985897,3514.6,3514.3,2.84545]
[1721583731172,0.88985897,3514.6,3514.3,3.68645]
[1721583731368,0.88985897,3514.6,3514.3,2.84545]
[1721583731553,0.88985897,3514.7,3514.3,2.84545]
[1721583732044,0.88985897,3514.7,3514.3,3.68645]
[1721583732242,0.88985897,3514.7,3514.5,2.84534]
[1721583732489,0.88985897,3514.7,3514.5,5.20824]
[1721583732781,0.88985897,3514.7,3514.5,2.3629]
[1721583734551,0.88985897,3514.8,3514.5,2.3629]
[1721583735076,0.88985897,3514.7,3514.5,2.3629]
[1721583735234,0.88985897,3514.8,3514.5,2.3629]
[1721583736273,0.88985897,3514.8,3514.5,5.20825]
[1721583736483,1.18741595,3514.9,3514.5,2.3629]
[1721583736971,1.18741595,3514.9,3514.6,2.84521]
[1721583737986,0.29755698,3514.9,3514.7,2.84513]
[1721583738133,0.88985897,3515.1,3514.7,2.84513]
[1721583738477,0.88985897,3515.1,3514.5,5.20824]
[1721583739319,0.88985897,3515.2,3514.7,2.84518]
[1721583739448,4.48563739,3515.3,3514.5,5.2082]
[1721583739449,1.18739056,3515.3,3514.5,5.2082]
[1721583739968,0.88985897,3515.2,3514.5,2.3629]
[1721583740140,0.88985897,3515.2,3514.5,5.2082]
[1721583740477,0.29753159,3515.3,3514.5,5.2082]
[1721583740478,1.18739056,3515.3,3514.5,5.2082]
[1721583741276,1.18739056,3515.3,3514.5,5.26510035]
[1721583741476,0.88985897,3515.2,3514.5,5.26510035]
[1721583741682,1.18739056,3515.3,3514.5,5.26510035]
[1721583741987,0.88985897,3515.2,3514.5,5.2082]
[1721583742278,0.29753159,3515.3,3514.6,0.05690038]
[1721583742279,1.18739056,3515.3,3514.6,0.05690038]
[1721583742480,1.18739056,3515.3,3514.8,2.2792]
[1721583743591,0.29753159,3515.3,3514.8,5.18119843]
[1721583743797,0.29753159,3515.3,3514.8,5.1243]
[1721583745466,0.29753159,3515.3,3514.8,2.2792]
[1721583745889,0.29753159,3515.3,3514.5,2.2792]
[1721583745890,2.3248,3515.2,3514.5,2.2792]
[1721583746058,2.3248,3515.2,3514.6,0.55]
[1721583746858,3.37929264,3515.2,3514.5,2.2792]
[1721583747165,3.37929264,3515.2,3514.2,9.5792]
[1721583747166,2.84495,3515.0,3514.2,9.5792]
[1721583747794,0.88985897,3515.0,3514.2,12.42478]
[1721583747955,0.88985897,3515.1,3514.2,12.42478]
[1721583749693,0.88985897,3515.1,3514.4,5.12416]
[1721583750001,0.88985897,3515.2,3514.5,2.2788]
[1721583751676,3.73464897,3515.2,3514.5,2.2788]
[1721583752002,0.88985897,3515.1,3514.5,2.2788]
[1721583752797,2.84495,3515.0,3514.5,2.2788]
[1721583753114,0.88985897,3515.1,3514.3,2.2788]
[1721583753310,0.88985897,3515.1,3514.2,8.141]
[1721583753311,0.88985897,3515.1,3514.4,2.2788]
[1721583753457,0.29754012,3514.9,3514.4,5.12417]
[1721583754106,0.29754012,3514.9,3514.6,0.841]
[1721583754395,0.29754012,3514.9,3514.7,5.12393]
[1721583757388,1.17983988,3514.8,3514.7,5.12393]
[1721583757769,1.17983988,3514.8,3514.7,2.2788]
[1721583757967,0.29754012,3514.9,3514.7,2.2788]
[1721583758390,0.59534162,3514.9,3514.7,2.2788]
[1721583759089,1.17975458,3514.8,3514.7,2.2788]
[1721583760223,1.17975458,3514.8,3514.7,5.12399]
[1721583760440,0.59534162,3514.9,3514.7,5.12399]
[1721583761597,0.59534162,3514.9,3514.8,2.4894]
[1721583761818,0.59534162,3514.9,3514.8,2.84511]
[1721583762001,1.77549251,3514.9,3514.8,5.33451]
[1721583765630,1.77549251,3514.9,3514.8,2.4894]
[1721583765833,1.77549251,3514.9,3514.6,2.2942]
[1721583766131,1.18015089,3514.8,3514.6,2.2942]
[1721583767729,1.18015089,3514.8,3514.6,5.13946]
[1721583767967,1.18015089,3514.8,3514.6,2.2942]
[1721583773599,1.17978191,3514.7,3514.6,2.2942]
[1721583773798,1.17978191,3514.8,3514.6,2.2942]
[1721583774410,1.17978191,3514.8,3514.6,5.98041]
[1721583776541,1.17978191,3514.8,3514.7,2.84519]
[1721583778406,1.0186192,3514.8,3514.7,2.84519]
[1721583780517,1.0186192,3514.8,3514.6,2.2942]
[1721583780720,1.0186192,3514.7,3514.4,3.68635]
[1721583781116,1.90847817,3514.7,3514.4,2.84535]
[1721583781446,1.0186192,3514.6,3514.3,5.162]
[1721583781916,1.0186192,3514.6,3514.3,2.3165]
[1721583782120,0.59534514,3514.5,3514.3,2.3165]
[1721583782418,1.0186192,3514.4,3514.3,2.3165]
[1721583786564,1.0186192,3514.4,3514.2,2.84558]
[1721583786857,1.0186192,3514.4,3514.0,6.00322]
[1721583787023,1.0186192,3514.4,3514.1,2.84566]
[1721583788175,1.0186192,3514.3,3514.0,2.3165]
[1721583788323,1.0186192,3514.3,3513.8,3.68688]
[1721583788520,1.0186192,3514.2,3513.8,3.68688]
[1721583788725,1.78345094,3514.5,3513.8,3.68688]
[1721583788726,1.0186192,3514.1,3513.8,3.68688]
[1721583789042,1.0186192,3514.0,3513.8,3.68688]
[1721583789252,1.0186192,3513.9,3513.8,3.68688]
[1721583789477,1.0178181,3514.2,3513.9,2.84582]
[1721583789683,1.01781547,3514.1,3513.9,2.84582]
[1721583789998,1.01781547,3514.0,3513.9,2.84582]
[1721583790162,1.90767444,3514.3,3513.9,2.84582]
[1721583790499,1.01781547,3514.2,3513.9,2.84582]
[1721583790700,1.01781547,3514.1,3513.9,2.84582]
[1721583790888,1.01781547,3514.0,3513.9,2.84582]
[1721583791084,1.01781547,3514.3,3513.9,2.84582]
[1721583792812,1.01781547,3514.3,3513.8,0.841]
[1721583793010,1.01781547,3514.3,3513.8,3.68691]
[1721583793175,1.01781547,3514.3,3513.8,0.841]
[1721583793817,1.01781547,3514.3,3513.7,5.16249]
[1721583795010,1.01781547,3514.3,3513.7,2.3165]
[1721583795390,1.90767444,3514.3,3513.7,2.3165]
[1721583795587,1.01781547,3514.2,3513.7,2.3165]
[1721583796128,0.88985897,3514.0,3513.5,2.3165]
[1721583796278,1.01781547,3513.9,3513.5,2.3165]
[1721583796474,1.01781547,3513.8,3513.3,10.4575]
[1721583796708,1.01781547,3513.7,3513.3,13.30381]
[1721583796981,1.01781547,3513.6,3513.3,13.30381]
[1721583797204,1.18746491,3514.1,3513.3,13.30381]
[1721583797417,0.29786075,3513.5,3513.3,13.30381]
[1721583797599,1.18746491,3514.1,3513.4,2.84624]
[1721583797808,1.01719926,3514.0,3513.6,2.84607]
[1721583798184,1.31505598,3514.0,3513.6,2.84607]
[1721583798383,1.01719926,3513.9,3513.5,0.841]
[1721583799721,0.29785672,3514.0,3513.5,0.841]
[1721583799722,1.01730451,3513.8,3513.5,0.841]
[1721583799921,0.29785672,3514.0,3513.5,3.68713]
[1721583800122,1.0173168,3513.9,3513.5,3.68713]
[1721583800795,1.0173168,3513.9,3513.5,2.84613]
[1721583802092,1.0173168,3513.9,3513.3,12.4628]
[1721583802416,1.017495,3513.8,3513.4,2.84623]
[1721583802614,0.29785672,3514.0,3513.4,2.84623]
[1721583802825,1.01751423,3513.9,3513.4,2.84623]
[1721583803693,1.01751423,3513.9,3513.4,3.68723]
[1721583804128,1.01751423,3513.9,3513.6,2.84606]
[1721583805522,1.01751423,3513.9,3513.6,2.84602]
[1721583807324,1.01751423,3513.9,3513.7,2.84598]
[1721583808347,1.01751423,3513.9,3513.8,2.84592]
[1721583808524,1.01751423,3513.9,3513.6,2.84603]
[1721583812444,1.01751423,3513.9,3513.4,2.8462]
[1721583812745,1.01751423,3513.9,3513.6,2.84607]
[1721583813398,0.29785672,3514.0,3513.6,2.84607]
[1721583813597,1.01783039,3513.9,3513.6,2.84607]
[1721583814750,0.29759961,3513.8,3513.6,2.84607]
[1721583818565,0.29759961,3513.8,3513.5,2.84615]
[1721583821598,0.29759961,3513.8,3513.4,2.84622]
[1721583823204,0.29759961,3513.8,3513.3,7.3]
[1721583823799,1.18745858,3513.8,3513.3,7.3]
[1721583824010,1.18745858,3513.8,3512.9,2.84664]
[1721583824011,2.4322,3513.7,3512.9,12.51804]
[1721583824205,0.76537444,3513.6,3512.9,12.22046165]
[1721583824413,0.00299041,3513.5,3512.9,12.22046165]
[1721583824572,0.00461517,3513.5,3512.9,12.22046165]
[1721583824770,0.30250616,3513.5,3512.9,12.22046165]
[1721583824997,0.29764941,3513.4,3512.9,12.22046165]
[1721583825181,0.00624003,3513.3,3512.9,12.22046165]
[1721583825391,0.00786497,3513.3,3512.9,9.6714]
[1721583825708,0.29764941,3513.4,3512.9,7.3]
[1721583826065,1.16936637,3513.4,3512.9,7.3]
[1721583826409,2.4322,3513.2,3512.9,7.3]
[1721583826614,0.01195357,3513.1,3512.5,24.94836]
[1721583826794,0.01195357,3513.1,3512.4,7.3]
[1721583826795,2.4322,3513.2,3512.4,5.21845]
[1721583827108,0.01195357,3513.1,3512.5,2.84696]
[1721583834711,0.01604268,3513.1,3512.3,2.84707]
[1721583835022,5.27879,3513.0,3512.1,2.84724]
[1721583835337,2.84689,3512.7,3511.9,7.3]
[1721583835827,0.01500998,3512.6,3511.9,7.3]
[1721583837801,2.4322,3512.8,3512.0,2.84737]
[1721583838001,1.1875728,3513.0,3512.0,2.84737]
[1721583838002,1.1875728,3513.0,3512.1,2.4595]
[1721583838228,3.29771383,3513.0,3512.3,2.84706]
[1721583838544,0.01013397,3512.9,3512.3,2.84706]
[1721583838854,0.01013397,3512.9,3512.4,2.84704]
[1721583839911,0.29794687,3512.8,3512.4,2.84704]
[1721583840456,0.02233358,3512.7,3512.5,2.84696]
[1721583840759,0.02233358,3512.7,3512.3,2.84712]
[1721583840760,0.01338455,3512.7,3512.3,2.84712]
[1721583840954,0.01338455,3512.7,3512.4,2.84705]
[1721583841125,0.29794687,3512.8,3512.4,2.84705]
[1721583841322,0.01500998,3512.6,3512.4,2.84705]
[1721583841564,0.29794687,3512.8,3512.4,2.84705]
[1721583841913,0.01338455,3512.7,3512.5,2.84697]
[1721583842114,0.01338455,3512.7,3512.6,5.30639]
[1721583842437,0.29794687,3512.8,3512.7,2.84681]
[1721583842643,0.29794687,3512.8,3512.6,2.4595]
[1721583843952,0.29794687,3512.8,3512.6,5.30636]
[1721583845478,2.2602,3512.7,3512.6,2.84686]
[1721583845681,0.29794687,3512.8,3512.3,2.84713]
[1721583845907,0.29794687,3512.8,3512.1,2.84727]
[1721583846183,0.29794687,3512.8,3512.4,2.84704]
[1721583847554,0.29794687,3512.8,3512.2,2.8472]
[1721583847759,0.29794687,3512.8,3512.3,2.84713]
[1721583850071,0.29794687,3512.8,3512.1,2.84729]
[1721583850287,0.29794687,3512.8,3512.0,0.841]
[1721583850491,0.29794687,3512.8,3512.0,2.84737]
[1721583850862,2.2602,3512.7,3512.0,2.84737]
[1721583851390,2.84691,3512.6,3511.9,7.3]
[1721583851694,3.14445169,3512.6,3511.9,7.3]
[1721583851895,0.29754169,3512.6,3511.9,7.3]
[1721583853211,3.14443169,3512.6,3511.9,7.3]
[1721583855168,0.01601286,3512.5,3511.9,7.3]
[1721583855508,0.46676483,3512.5,3511.9,7.3]
[1721583855865,2.54965538,3512.4,3511.9,7.3]
[1721583856077,2.56729384,3512.4,3511.9,7.3]
[1721583856688,2.56729384,3512.4,3511.7,2.8476]
[1721583861180,0.31559384,3512.4,3511.9,2.4942]
[1721583861513,0.32335436,3512.4,3511.9,6.1826]
[1721583863302,0.32335436,3512.4,3511.9,3.3352]
[1721583863511,0.32335436,3512.4,3512.1,2.84729]
[1721583864236,0.32335436,3512.4,3511.9,6.1826]
[1721583864394,0.32335436,3512.4,3511.9,5.3416]
[1721583864986,0.32335436,3512.4,3511.9,2.8474]
[1721583868399,0.32335436,3512.4,3511.7,5.34175]
[1721583868400,2.2577,3512.3,3511.7,5.34175]
[1721583868996,0.31842742,3512.2,3511.7,5.34175]
[1721583870226,0.31842742,3512.2,3511.5,10.14774]
[1721583870425,0.28740828,3512.1,3511.5,7.3]
[1721583871040,0.02414177,3512.0,3511.5,7.3]
[1721583871355,0.32211671,3512.0,3511.5,7.3]
[1721583874531,0.32211671,3512.0,3511.3,19.73]
[1721583874867,0.43568332,3511.9,3511.3,19.73]
[1721583875162,0.46554044,3511.9,3511.3,19.73]
[1721583875463,0.29797494,3512.0,3511.3,23.41887]
[1721583875971,0.29797494,3512.0,3511.5,2.84775]
[1721583876264,0.02816283,3511.9,3511.3,23.41887]
[1721583876574,0.02816283,3511.9,3511.4,2.84786]
[1721583877970,0.29797494,3512.0,3511.4,2.84786]
[1721583878317,0.02900996,3511.9,3511.4,2.84786]
[1721583879146,0.02900996,3511.9,3511.3,22.57793]
[1721583879472,0.29797494,3512.0,3511.3,22.57793]
[1721583879473,2.59976106,3511.8,3511.3,22.57793]
[1721583879649,0.03395699,3511.7,3511.3,19.73]
[1721583879980,2.59976106,3511.8,3511.3,19.73]
[1721583880472,2.59976106,3511.8,3511.2,5.34221]
[1721583880473,0.0305682,3511.7,3511.2,5.34221]
[1721583882352,0.0305682,3511.7,3511.2,2.4942]
[1721583882556,0.58812957,3511.6,3511.1,7.3]
[1721583883084,0.0412206,3511.5,3511.1,7.3]
[1721583883444,2.59976106,3511.8,3511.1,7.3]
[1721583883767,1.051658,3511.7,3511.1,10.1481]
[1721583884072,1.01461407,3511.6,3511.1,10.1481]
[1721583884571,0.03636245,3511.5,3511.1,10.1481]
[1721583885182,0.29746106,3511.8,3511.1,7.3]
[1721583885332,0.29746106,3511.8,3511.3,2.84794]
[1721583885333,0.03883642,3511.4,3511.3,2.84794]
[1721583885676,0.29746106,3511.8,3511.3,2.84794]
[1721583885969,0.03883642,3511.4,3511.3,2.84794]
[1721583886164,0.29746106,3511.8,3511.3,2.84794]
[1721583886539,0.03395671,3511.7,3511.3,2.84794]
[1721583886749,0.33194709,3511.7,3511.3,2.84794]
[1721583886947,0.29799038,3511.7,3511.3,2.84794]
[1721583887152,0.03134702,3511.6,3511.3,2.84794]
[1721583890734,0.03134702,3511.6,3511.2,2.84801]
[1721583894974,0.03134702,3511.6,3511.0,5.13166]
[1721583897132,0.03134702,3511.6,3511.0,2.84816]
[1721583898434,0.03134702,3511.6,3510.9,2.84826]
[1721583900663,3.66452534,3511.6,3510.8,2.2835]
[1721583900939,4.55438431,3511.6,3510.8,2.2835]
[1721583901750,3.66452534,3511.6,3510.8,2.2835]
[1721583901953,3.66452534,3511.6,3510.8,5.13184]
[1721583902493,3.66624734,3511.6,3510.8,5.13184]
[1721583904188,0.81853734,3511.6,3510.8,5.97278]
[1721583904383,0.03306902,3511.6,3511.0,2.84813]
[1721583904946,0.03306902,3511.6,3511.0,3.68913]
[1721583907042,0.03306902,3511.6,3511.0,2.84813]
[1721583910675,0.92292799,3511.6,3511.0,2.84813]
[1721583910874,0.92292799,3511.6,3510.8,5.97278]
[1721583911110,4.55627851,3511.6,3510.8,5.13178]
[1721583913108,0.88985897,3511.5,3510.8,5.13178]
[1721583913690,0.03714179,3511.4,3510.8,5.13178]
[1721583913891,0.3345895,3511.4,3510.8,5.13178]
[1721583914289,0.29802675,3511.3,3510.8,5.13178]
[1721583914693,0.04039529,3511.2,3510.8,5.13178]
[1721583914893,0.04039529,3511.2,3510.7,7.3]
[1721583915093,2.63732675,3511.3,3510.7,7.3]
[1721583915412,0.04113209,3511.2,3510.7,7.3]
[1721583915917,3.50212093,3511.3,3510.7,7.3]
[1721583916214,0.04039529,3511.2,3510.7,10.14842]
[1721583917706,0.04039529,3511.2,3510.7,7.3]
[1721583919214,0.04039529,3511.2,3510.6,3.6895]
[1721583922305,2.63732675,3511.3,3510.6,3.6895]
[1721583924719,2.63732675,3511.3,3510.7,2.84843]
[1721583924919,0.04124265,3511.2,3510.7,2.84843]
[1721583929715,2.88933265,3511.2,3510.5,2.4885]
[1721583929885,5.33791,3511.1,3510.4,0.1512655]
[1721583930085,3.78324281,3511.0,3510.4,0.1512655]
[1721583930286,3.73817897,3510.9,3510.4,0.1512655]
[1721583930508,1.96924601,3510.8,3510.4,0.1512655]
[1721583930722,2.26732045,3510.8,3510.4,0.1512655]
[1721583930926,1.37746148,3510.8,3510.4,0.1512655]
[1721583932999,0.34652262,3510.8,3510.4,2.9999355]
[1721583934108,0.34652262,3510.8,3510.4,0.1512655]
[1721583934319,0.34652262,3510.8,3510.4,2.9999355]
[1721583940255,0.34652262,3510.8,3510.4,0.1512655]
[1721583940465,2.4082,3510.7,3510.0,9.9032655]
[1721583940624,1.19502854,3510.6,3510.0,9.9032655]
[1721583940959,0.94019015,3510.5,3510.0,9.9032655]
[1721583941316,1.23666283,3510.5,3510.0,9.9032655]
[1721583941561,0.34680386,3510.5,3510.0,9.9032655]
[1721583945249,0.06429345,3510.1,3510.0,9.9032655]
[1721583946137,0.41921738,3510.1,3510.0,9.9032655]
[1721583946449,0.67067673,3510.1,3510.0,9.9032655]
[1721583948232,5.96989673,3510.1,3510.0,9.9032655]
[1721583948431,5.91309073,3510.1,3510.0,9.9032655]
[1721583948734,6.85657206,3510.1,3510.0,9.9032655]
[1721583948934,9.70549206,3510.1,3510.0,9.9032655]
[1721583949335,8.83795506,3510.1,3510.0,9.9032655]
[1721583949655,8.81563309,3510.1,3510.0,9.9032655]
[1721583950266,5.98903506,3510.1,3510.0,9.9032655]
[1721583950481,0.43835571,3510.1,3510.0,9.9032655]
[1721583950848,0.41603374,3510.1,3510.0,9.9032655]
[1721583951157,0.43575201,3510.1,3510.0,9.9032655]
[1721583951568,0.71269641,3510.1,3510.0,9.9032655]
[1721583952338,0.71269641,3510.1,3510.0,12.7522655]
[1721583952585,0.65907405,3510.1,3510.0,20.8077655]
[1721583952936,0.65907405,3510.1,3510.0,21.3577655]
[1721583954134,0.001722,3511.6,3510.1,2.3575]
[1721583954343,0.001722,3511.6,3510.5,2.3575]
[1721583954344,0.03908672,3511.5,3510.5,2.3575]
[1721583954680,0.001722,3511.6,3511.5,2.84778]
[1721583955382,0.59651682,3511.6,3511.5,2.84778]
[1721583955586,0.59651682,3511.6,3511.1,2.84803]
[1721583955790,0.59651682,3511.6,3510.9,10.14825]
[1721583956073,0.59651682,3511.6,3510.9,7.3]
[1721583956284,3.44421682,3511.6,3510.9,7.3]
[1721583956643,2.84784,3511.5,3510.9,7.3]
[1721583956840,2.87949052,3511.5,3510.9,7.3]
[1721583957180,0.03327702,3511.4,3510.9,7.3]
[1721583957401,2.84796,3511.3,3510.5,12.47]
[1721583957534,0.03653031,3511.2,3510.4,10.14865]
[1721583957737,2.88456031,3511.2,3510.4,7.3]
[1721583957936,2.84803,3511.2,3510.4,7.3]
[1721583958163,0.03815709,3511.1,3510.4,7.3]
[1721583958547,0.03815709,3511.1,3510.4,10.14865]
[1721583958875,2.84786,3511.4,3510.4,10.14865]
[1721583959077,0.03978397,3511.0,3510.4,10.14865]
[1721583959445,2.84807,3511.2,3510.4,7.3]
[1721583959773,2.84812,3511.1,3510.4,7.3]
[1721583959986,0.03978397,3511.0,3510.4,7.3]
[1721583960737,0.03978397,3511.0,3510.0,17.2032655]
[1721583961045,2.84844,3510.7,3510.0,17.2032655]
[1721583961465,2.84828,3510.9,3510.0,20.0521955]
[1721583961739,0.043038,3510.8,3510.3,2.84875]
[1721583962079,4.0359658,3511.4,3510.0,17.2032655]
[1721583962080,6.19306897,3511.5,3510.1,2.4992]
[1721583962303,6.19306897,3511.5,3510.6,2.84848]
[1721583962454,3.03327702,3511.4,3510.6,2.84848]
[1721583962655,5.88114702,3511.4,3510.6,2.84848]
[1721583963546,7.1482013,3511.4,3510.6,2.84848]
[1721583963773,2.84795,3511.3,3510.5,2.84858]
[1721583963984,0.03653031,3511.2,3510.5,2.84858]
[1721583964286,0.03653031,3511.2,3510.6,2.8485]
[1721583964782,0.03815709,3511.1,3510.4,2.84867]
[1721583965005,4.21590634,3511.3,3510.2,2.84882]
[1721583965212,0.92638928,3511.2,3510.2,2.84882]
[1721583965410,1.22317601,3511.2,3510.2,2.84882]
[1721583965617,0.33331704,3511.2,3510.2,2.84882]
[1721583965765,2.8482,3511.0,3510.2,2.84882]
[1721583966115,0.04141094,3510.9,3510.2,2.84882]
[1721583966698,0.04141094,3510.9,3510.0,17.2032655]
[1721583966873,2.84844,3510.7,3510.0,17.2032655]
[1721583967074,2.2602,3510.8,3510.0,17.2032655]
[1721583967309,5.10857,3510.8,3510.0,17.2032655]
[1721583967515,0.04409415,3510.7,3510.0,17.2032655]
[1721583967876,5.10857,3510.8,3510.0,17.2032655]
[1721583968176,2.8486,3510.5,3510.0,17.2032655]
[1721583968402,2.8486,3510.5,3510.0,9.9032655]
[1721583968609,0.04897612,3510.4,3510.0,9.9032655]
[1721583969107,2.89766612,3510.4,3510.0,9.9032655]
[1721583970597,0.29811672,3510.3,3510.0,9.9032655]
[1721583970911,0.05268807,3510.2,3510.0,9.9032655]
[1721583971238,0.29811672,3510.3,3510.0,9.9032655]
[1721583971393,0.05431577,3510.1,3510.0,9.9032655]
[1721583971719,0.29811672,3510.3,3510.0,9.9032655]
[1721583972021,0.05268807,3510.2,3510.0,9.9032655]
[1721583972308,0.29811672,3510.3,3510.0,9.9032655]
[1721583972814,0.05268807,3510.2,3510.0,9.9032655]
[1721583973020,0.29811672,3510.3,3510.0,9.9032655]
[1721583973317,0.05431577,3510.1,3510.0,9.9032655]
[1721583973528,0.29811672,3510.3,3510.0,9.9032655]
[1721583973821,0.05268807,3510.2,3510.0,9.9032655]
[1721583973977,0.29811672,3510.3,3510.0,9.9032655]
[1721583974177,0.05268807,3510.2,3510.0,9.9032655]
[1721583974390,0.29811672,3510.3,3510.0,9.9032655]
[1721583974718,0.05268807,3510.2,3510.0,9.9032655]
[1721583975095,0.29811672,3510.3,3510.0,9.9032655]
[1721583975292,0.05431577,3510.1,3510.0,9.9032655]
[1721583975474,0.29811672,3510.3,3510.0,9.9032655]
[1721583975921,0.29674429,3510.1,3510.0,9.9032655]
[1721583976286,0.35106006,3510.1,3510.0,9.9032655]
[1721583977289,0.29674429,3510.1,3510.0,9.9032655]
[1721583982579,0.35106006,3510.1,3510.0,9.9032655]
[1721583992781,0.36765412,3510.1,3510.0,9.9015435]
[1721583998373,3.21657412,3510.1,3510.0,9.9015435]
[1721584000765,4.10643309,3510.1,3510.0,9.9015435]
[1721584000966,4.69095958,3510.1,3510.0,9.9015435]
[1721584001160,5.55963612,3510.1,3510.0,9.9015435]
[1721584001400,4.66977715,3510.1,3510.0,9.9015435]
[1721584002475,1.82085715,3510.1,3510.0,9.9015435]
[1721584002683,5.55620073,3510.1,3510.0,9.9015435]
[1721584003110,4.66977715,3510.1,3510.0,9.9015435]